fUSD/lending_fUSD_20240113
["ID","MTS","AMOUNT","RATE_DAILY","PERIOD"]
[311455175,1705139449429,-500.0,0.00027397,2]
[311455176,1705139449439,-500.0,0.00027397,2]
[311455177,1705139449448,-500.0,0.00027397,2]
[311455178,1705139449458,-500.0,0.00027397,2]
[311455179,1705139449468,-500.0,0.00027397,2]
[311455180,1705139449478,-500.0,0.00027397,2]
[311455181,1705139449491,-500.0,0.00027397,2]
[311455182,1705139449500,-500.0,0.00027397,2]
[311455183,1705139449510,-500.0,0.00027397,2]
[311455184,1705139449520,-500.0,0.00027397,2]
[311455185,1705139449529,-500.0,0.00027397,2]
[311455186,1705139449539,-500.0,0.00027397,2]
[311455187,1705139449550,-500.0,0.00027397,2]
[311455188,1705139449560,-500.0,0.00027397,2]
[311455189,1705139449571,-500.0,0.00027397,2]
[311455190,1705139449580,-500.0,0.00027397,2]
[311455191,1705139449591,-500.0,0.00027397,2]
[311455192,1705139449601,-500.0,0.00027397,2]
[311455193,1705139449611,-500.0,0.00027397,2]
[311455194,1705139449621,-3338.74,0.00027397,2]
[311455195,1705139449631,-500.0,0.00027397,2]
[311455196,1705139449640,-500.0,0.00027397,2]
[311455197,1705139449649,-500.0,0.00027397,2]
[311455198,1705139449659,-1783.62,0.00027397,2]
[311455199,1705139449669,-555.93,0.00027397,2]
[311455200,1705139449678,-500.0,0.00027397,2]
[311455201,1705139449688,-500.0,0.00027397,2]
[311455202,1705139449697,-500.0,0.00027397,2]
[311455203,1705139449707,-500.0,0.00027397,2]
[311455204,1705139449717,-500.0,0.00027397,2]
[311455205,1705139449726,-500.0,0.00027397,2]
[311455206,1705139449739,-182.56225824,0.00027397,2]
[311455207,1705139449748,-551.15,0.00027397,2]
[311455208,1705139449758,-500.0,0.00027397,2]
[311455209,1705139449767,-500.0,0.00027397,2]
[311455210,1705139449776,-500.0,0.00027397,2]
[311455211,1705139449785,-500.0,0.00027397,2]
[311455212,1705139449794,-731.94,0.00027397,2]
[311455213,1705139449803,-500.0,0.00027397,2]
[311455214,1705139449813,-956.76,0.00027397,2]
[311455215,1705139449823,-4761.26,0.00027397,2]
[311455216,1705139449832,-503.81897482,0.00027397,2]
[311455217,1705139449842,-500.0,0.00027397,2]
[311455218,1705139449852,-792.82,0.00027397,2]
[311455219,1705139449861,-583.98,0.00027397,2]
[311455220,1705139449870,-500.0,0.00027397,2]
[311455221,1705139449880,-500.0,0.00027397,2]
[311455222,1705139449890,-500.0,0.00027397,2]
[311455223,1705139449899,-500.0,0.00027397,2]
[311455224,1705139449909,-500.0,0.00027397,2]
[311455225,1705139449918,-500.0,0.00027397,2]
[311455226,1705139449929,-500.0,0.00027397,2]
[311455227,1705139449938,-500.0,0.00027397,2]
[311455228,1705139449948,-500.0,0.00027397,2]
[311455229,1705139449958,-500.0,0.00027397,2]
[311455230,1705139449968,-2095.36,0.00027397,2]
[311455231,1705139449978,-500.0,0.00027397,2]
[311455232,1705139449990,-500.0,0.00027397,2]
[311455233,1705139449999,-500.0,0.00027397,2]
[311455234,1705139450009,-500.0,0.00027397,2]
[311455235,1705139450019,-581.66,0.00027397,2]
[311455236,1705139450028,-500.0,0.00027397,2]
[311455237,1705139450038,-500.0,0.00027397,2]
[311455238,1705139450048,-500.0,0.00027397,2]
[311455239,1705139450058,-5860.7,0.00027397,2]
[311455240,1705139450068,-500.0,0.00027397,2]
[311455241,1705139450078,-500.0,0.00027397,2]
[311455242,1705139450088,-500.0,0.00027397,2]
[311455243,1705139450098,-500.0,0.00027397,2]
[311455244,1705139450108,-500.0,0.00027397,2]
[311455245,1705139450118,-500.0,0.00027397,2]
[311455246,1705139450128,-500.0,0.00027397,2]
[311455247,1705139450137,-500.0,0.00027397,2]
[311455248,1705139450147,-500.0,0.00027397,2]
[311455249,1705139450157,-535.5229379,0.00027397,2]
[311455250,1705139450166,-1558.22,0.00027397,2]
[311455251,1705139450176,-500.0,0.00027397,2]
[311455252,1705139450186,-500.0,0.00027397,2]
[311455253,1705139450196,-602.17214415,0.00027397,2]
[311455254,1705139450206,-500.0,0.00027397,2]
[311455255,1705139450215,-500.0,0.00027397,2]
[311455256,1705139450225,-519.09,0.00027397,2]
[311455257,1705139450235,-502.66326658,0.00027397,2]
[311455258,1705139450245,-500.0,0.00027397,2]
[311455259,1705139450255,-500.0,0.00027397,2]
[311455260,1705139450264,-500.0,0.00027397,2]
[311455261,1705139450275,-500.0,0.00027397,2]
[311455262,1705139450285,-211.26899582,0.00027397,2]
[311455263,1705139450295,-844.84,0.00027397,2]
[311455264,1705139450304,-500.0,0.00027397,2]
[311455265,1705139450314,-500.0,0.00027397,2]
[311455266,1705139450324,-500.0,0.00027397,2]
[311455267,1705139450333,-500.0,0.00027397,2]
[311455268,1705139450344,-500.0,0.00027397,2]
[311455269,1705139450353,-500.0,0.00027397,2]
[311455270,1705139450363,-500.0,0.00027397,2]
[311455271,1705139450373,-500.0,0.00027397,2]
[311455272,1705139450382,-1773.05,0.00027397,2]
[311455273,1705139450391,-525.91,0.00027397,2]
[311455274,1705139450404,-500.0,0.00027397,2]
[311455275,1705139450414,-500.0,0.00027397,2]
[311455276,1705139450424,-502.36996732,0.00027397,2]
[311455277,1705139450434,-500.0,0.00027397,2]
[311455278,1705139450444,-500.0,0.00027397,2]
[311455279,1705139450455,-500.0,0.00027397,2]
[311455280,1705139450465,-500.0,0.00027397,2]
[311455281,1705139450475,-500.0,0.00027397,2]
[311455282,1705139450487,-836.48,0.00027397,2]
[311455283,1705139450498,-1687.45,0.00027397,2]
[311455284,1705139450509,-500.0,0.00027397,2]
[311455285,1705139450519,-500.0,0.00027397,2]
[311455286,1705139450528,-500.0,0.00027397,2]
[311455287,1705139450538,-500.0,0.00027397,2]
[311455288,1705139450548,-530.09,0.00027397,2]
[311455289,1705139450558,-500.0,0.00027397,2]
[311455290,1705139450569,-524.33,0.00027397,2]
[311455291,1705139450578,-500.0,0.00027397,2]
[311455292,1705139450588,-500.0,0.00027397,2]
[311455293,1705139450598,-500.0,0.00027397,2]
[311455294,1705139450607,-500.0,0.00027397,2]
[311455295,1705139450617,-3294.28,0.00027397,2]
[311455296,1705139450627,-455.0,0.00027397,2]
[311455297,1705139450637,-500.0,0.00027397,2]
[311455298,1705139450646,-621.92,0.00027397,2]
[311455299,1705139450656,-1448.75,0.00027397,2]
[311455300,1705139450667,-500.0,0.00027397,2]
[311455301,1705139450676,-503.74,0.00027397,2]
[311455302,1705139450686,-500.0,0.00027397,2]
[311455303,1705139450696,-822.97,0.00027397,2]
[311455304,1705139450705,-500.0,0.00027397,2]
[311455305,1705139450715,-502.04612836,0.00027397,2]
[311455306,1705139450725,-500.0,0.00027397,2]
[311455307,1705139450735,-500.0,0.00027397,2]
[311455308,1705139450747,-500.0,0.00027397,7]
[311455309,1705139450757,-540.49,0.00027397,2]
[311455310,1705139450767,-16299.14,0.00027397,2]
[311455311,1705139450776,-617.94,0.00027397,2]
[311455312,1705139450786,-866.3,0.00027397,2]
[311455313,1705139450795,-505.18932714,0.00027397,2]
[311455314,1705139450805,-500.0,0.00027397,2]
[311455315,1705139450815,-501.76568296,0.00027397,2]
[311455316,1705139450825,-500.0,0.00027397,2]
[311455317,1705139450836,-500.0,0.00027397,2]
[311455318,1705139450846,-501.06317031,0.00027397,2]
[311455319,1705139450856,-843.86,0.00027397,2]
[311455320,1705139450866,-1000.0,0.00027397,7]
[311455321,1705139450876,-500.0,0.00027397,2]
[311455322,1705139450885,-500.0,0.00027397,2]
[311455323,1705139450895,-500.0,0.00027397,2]
[311455324,1705139450905,-500.0,0.00027397,2]
[311455325,1705139450915,-500.0,0.00027397,2]
[311455326,1705139450924,-500.0,0.00027397,2]
[311455327,1705139450933,-500.0,0.00027397,2]
[311455328,1705139450943,-500.0,0.00027397,2]
[311455329,1705139450952,-705.13,0.00027397,2]
[311455330,1705139450962,-501.92345287,0.00027397,2]
[311455331,1705139450972,-1764.72,0.00027397,2]
[311455332,1705139450982,-500.0,0.00027397,2]
[311455333,1705139450998,-500.0,0.00027397,2]
[311455334,1705139451008,-500.0,0.00027397,2]
[311455335,1705139451018,-500.0,0.00027397,2]
[311455336,1705139451028,-500.0,0.00027397,2]
[311455337,1705139451038,-504.02958817,0.00027397,2]
[311455338,1705139451048,-529.59,0.00027397,2]
[311455339,1705139451058,-503.71,0.00027397,2]
[311455340,1705139451068,-500.0,0.00027397,2]
[311455341,1705139451078,-500.0,0.00027397,15]
[311455342,1705139451088,-507.51271747,0.00027397,2]
[311455343,1705139451098,-500.0,0.00027397,2]
[311455344,1705139451108,-500.0,0.00027397,2]
[311455345,1705139451118,-500.0,0.00027397,2]
[311455346,1705139451128,-500.0,0.00027397,2]
[311455347,1705139451138,-500.0,0.00027397,2]
[311455348,1705139451149,-500.0,0.00027397,2]
[311455349,1705139451402,-581.51,0.00027397,2]
[311455350,1705139451412,-2002.9,0.00027397,2]
[311455351,1705139451422,-500.0,0.00027397,2]
[311455352,1705139451432,-500.0,0.00027397,2]
[311455353,1705139451442,-500.0,0.00027397,2]
[311455354,1705139451452,-500.0,0.00027397,2]
[311455355,1705139451461,-1787.81,0.00027397,2]
[311455356,1705139451472,-3911.25,0.00027397,2]
[311455357,1705139451483,-636.08,0.00027397,2]
[311455358,1705139451494,-500.0,0.00027397,2]
[311455359,1705139451503,-500.0,0.00027397,2]
[311455360,1705139451512,-1206.52,0.00027397,2]
[311455361,1705139451522,-500.0,0.00027397,2]
[311455362,1705139451531,-500.0,0.00027397,2]
[311455363,1705139451540,-500.0,0.00027397,2]
[311455364,1705139451549,-500.0,0.00027397,2]
[311455365,1705139451559,-500.0,0.00027397,2]
[311455366,1705139451568,-500.0,0.00027397,2]
[311455367,1705139451577,-790.93,0.00027397,2]
[311455368,1705139451587,-500.0,0.00027397,2]
[311455369,1705139451596,-500.0,0.00027397,2]
[311455370,1705139451605,-500.0,0.00027397,2]
[311455371,1705139451615,-1124.85,0.00027397,2]
[311455372,1705139451624,-500.0,0.00027397,2]
[311455373,1705139451633,-500.0,0.00027397,2]
[311455374,1705139451643,-500.0,0.00027397,2]
[311455375,1705139451652,-500.0,0.00027397,2]
[311455376,1705139451661,-500.0,0.00027397,2]
[311455377,1705139451672,-500.0,0.00027397,2]
[311455378,1705139451681,-500.0,0.00027397,2]
[311455379,1705139451690,-500.0,0.00027397,2]
[311455380,1705139451700,-500.0,0.00027397,2]
[311455381,1705139451710,-884.64,0.00027397,2]
[311455382,1705139451720,-680.05,0.00027397,2]
[311455383,1705139451730,-500.0,0.00027397,2]
[311455384,1705139451741,-1374.87,0.00027397,2]
[311455385,1705139451751,-500.0,0.00027397,2]
[311455386,1705139451760,-500.0,0.00027397,2]
[311455387,1705139451770,-500.0,0.00027397,2]
[311455388,1705139451779,-500.0,0.00027397,2]
[311455389,1705139451789,-500.0,0.00027397,2]
[311455390,1705139451798,-517.37,0.00027397,2]
[311455391,1705139451807,-500.0,0.00027397,2]
[311455392,1705139451817,-500.0,0.00027397,2]
[311455393,1705139451827,-998.83,0.00027397,2]
[311455394,1705139451836,-824.69,0.00027397,2]
[311455395,1705139451846,-500.0,0.00027397,2]
[311455396,1705139451856,-506.34798819,0.00027397,2]
[311455397,1705139451865,-500.0,0.00027397,2]
[311455398,1705139451876,-500.0,0.00027397,2]
[311455399,1705139451885,-500.0,0.00027397,2]
[311455400,1705139451894,-1357.89,0.00027397,2]
[311455401,1705139451903,-500.0,0.00027397,2]
[311455402,1705139451913,-500.0,0.00027397,2]
[311455403,1705139451922,-500.0,0.00027397,2]
[311455404,1705139451931,-1185.36,0.00027397,2]
[311455405,1705139451941,-662.8,0.00027397,2]
[311455406,1705139451950,-13670.93,0.00027397,2]
[311455407,1705139451959,-500.0,0.00027397,2]
[311455408,1705139451968,-500.0,0.00027397,2]
[311455409,1705139451978,-564.41,0.00027397,2]
[311455410,1705139451989,-500.0,0.00027397,2]
[311455411,1705139452000,-500.0,0.00027397,2]
[311455412,1705139452010,-7731.43,0.00027397,2]
[311455413,1705139452019,-500.0,0.00027397,2]
[311455414,1705139452029,-500.0,0.00027397,2]
[311455415,1705139452038,-500.0,0.00027397,2]
[311455416,1705139452048,-500.0,0.00027397,2]
[311455417,1705139452057,-500.0,0.00027397,2]
[311455418,1705139452067,-500.0,0.00027397,2]
[311455419,1705139452077,-617.79,0.00027397,2]
[311455420,1705139452087,-500.0,0.00027397,2]
[311455421,1705139452096,-500.0,0.00027397,2]
[311455422,1705139452105,-584.89,0.00027397,2]
[311455423,1705139452115,-500.0,0.00027397,2]
[311455424,1705139452125,-500.0,0.00027397,2]
[311455425,1705139452133,-564.01,0.00027397,2]
[311455426,1705139452143,-324.32341232,0.00027397,2]
[311455427,1705139452154,-500.0,0.00027397,2]
[311455428,1705139452163,-500.0,0.00027397,2]
[311455429,1705139452173,-627.81,0.00027397,2]
[311455430,1705139452183,-500.0,0.00027397,2]
[311455431,1705139452193,-500.0,0.00027397,2]
[311455432,1705139452203,-502.26885905,0.00027397,2]
[311455433,1705139452213,-2073.5,0.00027397,2]
[311455434,1705139452222,-500.0,0.00027397,2]
[311455435,1705139452233,-500.0,0.00027397,2]
[311455436,1705139452247,-500.0,0.00027397,2]
[311455437,1705139452257,-500.0,0.00027397,2]
[311455438,1705139452267,-615.01,0.00027397,2]
[311455439,1705139452277,-500.0,0.00027397,2]
[311455440,1705139452287,-500.0,0.00027397,2]
[311455441,1705139452296,-500.0,0.00027397,2]
[311455442,1705139452306,-500.0,0.00027397,2]
[311455443,1705139452316,-500.0,0.00027397,2]
[311455444,1705139452325,-741.12,0.00027397,2]
[311455445,1705139452339,-500.0,0.00027397,2]
[311455446,1705139452349,-500.0,0.00027397,2]
[311455447,1705139452359,-1434.4,0.00027397,2]
[311455448,1705139452369,-500.0,0.00027397,2]
[311455449,1705139452379,-2876.93,0.00027397,2]
[311455450,1705139452389,-1282.08,0.00027397,2]
[311455451,1705139452399,-500.0,0.00027397,2]
[311455452,1705139452408,-500.0,0.00027397,2]
[311455453,1705139452418,-500.0,0.00027397,2]
[311455454,1705139452428,-500.0,0.00027397,2]
[311455455,1705139452438,-500.0,0.00027397,2]
[311455456,1705139452448,-500.0,0.00027397,2]
[311455457,1705139452458,-968.26,0.00027397,2]
[311455458,1705139452467,-1010.78,0.00027397,2]
[311455459,1705139452477,-500.0,0.00027397,2]
[311455460,1705139452489,-584.81,0.00027397,2]
[311455461,1705139452499,-500.0,0.00027397,2]
[311455462,1705139452509,-500.0,0.00027397,2]
[311455463,1705139452518,-500.0,0.00027397,2]
[311455464,1705139452528,-500.0,0.00027397,2]
[311455465,1705139452537,-500.0,0.00027397,2]
[311455466,1705139452546,-500.0,0.00027397,2]
[311455467,1705139452555,-500.0,0.00027397,2]
[311455468,1705139452565,-522.46778807,0.00027397,2]
[311455469,1705139452574,-500.0,0.00027397,2]
[311455470,1705139452584,-500.0,0.00027397,2]
[311455471,1705139452593,-500.0,0.00027397,2]
[311455472,1705139452603,-500.0,0.00027397,2]
[311455473,1705139452613,-500.0,0.00027397,2]
[311455474,1705139452623,-518.75003996,0.00027397,2]
[311455475,1705139452632,-500.0,0.00027397,2]
[311455476,1705139452642,-500.0,0.00027397,2]
[311455477,1705139452652,-573.97,0.00027397,2]
[311455478,1705139452662,-500.0,0.00027397,2]
[311455479,1705139452671,-500.0,0.00027397,2]
[311455480,1705139452681,-1158.98,0.00027397,2]
[311455481,1705139452691,-500.0,0.00027397,2]
[311455482,1705139452700,-500.0,0.00027397,2]
[311455483,1705139452710,-500.0,0.00027397,2]
[311455484,1705139452720,-728.25,0.00027397,2]
[311455485,1705139452729,-500.0,0.00027397,2]
[311455486,1705139452739,-500.0,0.00027397,2]
[311455487,1705139452749,-599.67,0.00027397,2]
[311455488,1705139452758,-500.0,0.00027397,2]
[311455489,1705139452767,-508.21779035,0.00027397,2]
[311455490,1705139452777,-767.38,0.00027397,2]
[311455491,1705139452786,-500.0,0.00027397,2]
[311455492,1705139452796,-500.0,0.00027397,2]
[311455493,1705139452806,-569.09170218,0.00027397,2]
[311455494,1705139452815,-500.0,0.00027397,2]
[311455495,1705139452825,-500.0,0.00027397,2]
[311455496,1705139452838,-500.0,0.00027397,2]
[311455497,1705139452847,-500.0,0.00027397,2]
[311455498,1705139452857,-500.0,0.00027397,2]
[311455499,1705139452867,-1210.43,0.00027397,2]
[311455500,1705139452877,-500.0,0.00027397,2]
[311455501,1705139452887,-7894.07,0.00027397,2]
[311455502,1705139452897,-500.0,0.00027397,2]
[311455503,1705139452907,-1135.74,0.00027397,5]
[311455504,1705139452917,-1000.0,0.00027397,2]
[311455505,1705139452927,-500.0,0.00027397,2]
[311455506,1705139452937,-500.0,0.00027397,2]
[311455507,1705139452947,-500.0,0.00027397,2]
[311455508,1705139452958,-500.0,0.00027397,2]
[311455509,1705139452967,-576.38,0.00027397,2]
[311455510,1705139452977,-500.0,0.00027397,2]
[311455511,1705139452987,-500.0,0.00027397,2]
[311455512,1705139452997,-500.0,0.00027397,2]
[311455513,1705139453007,-511.87,0.00027397,2]
[311455514,1705139453017,-500.0,0.00027397,2]
[311455515,1705139453028,-862.89,0.00027397,2]
[311455516,1705139453038,-500.0,0.00027397,2]
[311455517,1705139453048,-500.0,0.00027397,2]
[311455518,1705139453059,-500.0,0.00027397,2]
[311455519,1705139453070,-500.0,0.00027397,2]
[311455520,1705139453080,-500.0,0.00027397,2]
[311455521,1705139453090,-8243.37,0.00027397,2]
[311455522,1705139453099,-529.05,0.00027397,2]
[311455523,1705139453109,-500.0,0.00027397,2]
[311455524,1705139453119,-500.0,0.00027397,2]
[311455525,1705139453130,-500.0,0.00027397,2]
[311455526,1705139453140,-500.0,0.00027397,2]
[311455527,1705139453150,-952.88,0.00027397,2]
[311455528,1705139453160,-1000.0,0.00027397,2]
[311455529,1705139453174,-1753.92,0.00027397,2]
[311455530,1705139453185,-2274.72,0.00027397,2]
[311455531,1705139453195,-500.0,0.00027397,2]
[311455532,1705139453206,-500.0,0.00027397,2]
[311455533,1705139453217,-818.6,0.00027397,2]
[311455534,1705139453227,-500.0,0.00027397,2]
[311455535,1705139453238,-500.0,0.00027397,2]
[311455536,1705139453247,-500.0,0.00027397,2]
[311455537,1705139453257,-500.0,0.00027397,2]
[311455538,1705139453267,-865.96,0.00027397,2]
[311455539,1705139453278,-595.66,0.00027397,2]
[311455540,1705139453287,-216.97722286,0.00027397,2]
[311455541,1705139453297,-500.0,0.00027397,2]
[311455542,1705139453307,-1878.98,0.00027397,2]
[311455543,1705139453317,-500.0,0.00027397,2]
[311455544,1705139453327,-500.0,0.00027397,2]
[311455545,1705139453337,-500.0,0.00027397,2]
[311455546,1705139453347,-500.0,0.00027397,2]
[311455547,1705139453356,-500.0,0.00027397,2]
[311455548,1705139453366,-500.0,0.00027397,2]
[311455549,1705139453375,-500.0,0.00027397,2]
[311455550,1705139453385,-500.0,0.00027397,2]
[311455551,1705139453396,-2156.31,0.00027397,2]
[311455552,1705139453408,-506.68338921,0.00027397,2]
[311455553,1705139453418,-535.58,0.00027397,2]
[311455554,1705139453427,-500.0,0.00027397,2]
[311455555,1705139453437,-500.0,0.00027397,2]
[311455556,1705139453447,-500.0,0.00027397,2]
[311455557,1705139453456,-500.0,0.00027397,2]
[311455558,1705139453466,-500.0,0.00027397,2]
[311455559,1705139453477,-500.0,0.00027397,2]
[311455560,1705139453486,-1520.72,0.00027397,2]
[311455561,1705139453495,-1084.78,0.00027397,2]
[311455562,1705139453505,-2567.21,0.00027397,2]
[311455563,1705139453514,-500.0,0.00027397,2]
[311455564,1705139453524,-1479.79,0.00027397,2]
[311455565,1705139453533,-500.0,0.00027397,2]
[311455566,1705139453542,-2580.27,0.00027397,2]
[311455567,1705139453552,-608.33,0.00027397,2]
[311455568,1705139453561,-500.0,0.00027397,2]
[311455569,1705139453571,-500.0,0.00027397,2]
[311455570,1705139453580,-500.0,0.00027397,2]
[311455571,1705139453590,-500.0,0.00027397,2]
[311455572,1705139453600,-500.0,0.00027397,2]
[311455573,1705139453609,-503.48309204,0.00027397,2]
[311455574,1705139453618,-500.0,0.00027397,2]
[311455575,1705139453628,-500.0,0.00027397,2]
[311455576,1705139453637,-500.0,0.00027397,2]
[311455577,1705139453647,-500.0,0.00027397,2]
[311455578,1705139453656,-799.62,0.00027397,2]
[311455579,1705139453666,-519.80887105,0.00027397,2]
[311455580,1705139453675,-500.0,0.00027397,2]
[311455581,1705139453685,-1064.4,0.00027397,2]
[311455582,1705139453694,-630.44,0.00027397,2]
[311455583,1705139453704,-593.36,0.00027397,2]
[311455584,1705139453714,-500.0,0.00027397,2]
[311455585,1705139453920,-974.26,0.00027397,2]
[311455586,1705139453931,-500.0,0.00027397,2]
[311455587,1705139453941,-524.3291718,0.00027397,2]
[311455588,1705139453950,-521.92,0.00027397,2]
[311455589,1705139453959,-500.0,0.00027397,2]
[311455590,1705139453968,-943.95,0.00027397,2]
[311455591,1705139453978,-500.0,0.00027397,2]
[311455592,1705139453989,-501.05319781,0.00027397,2]
[311455593,1705139453998,-500.0,0.00027397,2]
[311455594,1705139454006,-500.0,0.00027397,2]
[311455595,1705139454016,-500.08034439,0.00027397,2]
[311455596,1705139454025,-500.0,0.00027397,2]
[311455597,1705139454034,-409.94597808,0.00027397,2]
[311455598,1705139454043,-500.0,0.00027397,2]
[311455599,1705139454052,-500.0,0.00027397,2]
[311455600,1705139454062,-500.0,0.00027397,2]
[311455601,1705139454071,-503.09299813,0.00027397,2]
[311455602,1705139454080,-531.43,0.00027397,2]
[311455603,1705139454089,-810.23,0.00027397,2]
[311455604,1705139454098,-500.0,0.00027397,2]
[311455605,1705139454107,-708.48,0.00027397,2]
[311455606,1705139454116,-500.0,0.00027397,2]
[311455607,1705139454125,-500.0,0.00027397,2]
[311455608,1705139454135,-500.0,0.00027397,2]
[311455609,1705139454145,-500.0,0.00027397,2]
[311455610,1705139454154,-642.4,0.00027397,2]
[311455611,1705139454163,-788.38,0.00027397,2]
[311455612,1705139454172,-500.0,0.00027397,2]
[311455613,1705139454182,-1214.25,0.00027397,2]
[311455614,1705139454191,-500.0,0.00027397,2]
[311455615,1705139454201,-515.1,0.00027397,2]
[311455616,1705139454210,-500.0,0.00027397,2]
[311455617,1705139454219,-500.0,0.00027397,2]
[311455618,1705139454229,-546.11,0.00027397,2]
[311455619,1705139454239,-500.0,0.00027397,2]
[311455620,1705139454249,-500.0,0.00027397,2]
[311455621,1705139454258,-500.0,0.00027397,2]
[311455622,1705139454267,-1211.75,0.00027397,2]
[311455623,1705139454278,-500.0,0.00027397,2]
[311455624,1705139454287,-500.0,0.00027397,2]
[311455625,1705139454296,-500.0,0.00027397,2]
[311455626,1705139454306,-500.0,0.00027397,2]
[311455627,1705139454315,-500.0,0.00027397,2]
[311455628,1705139454325,-4904.28,0.00027397,2]
[311455629,1705139454335,-1205.44,0.00027397,2]
[311455630,1705139454344,-501.90531653,0.00027397,2]
[311455631,1705139454353,-500.0,0.00027397,2]
[311455632,1705139454363,-500.0,0.00027397,2]
[311455633,1705139454373,-628.94,0.00027397,2]
[311455634,1705139454383,-500.0,0.00027397,2]
[311455635,1705139454392,-500.0,0.00027397,2]
[311455636,1705139454402,-500.0,0.00027397,2]
[311455637,1705139454413,-500.0,0.00027397,2]
[311455638,1705139454424,-7629.86,0.00027397,2]
[311455639,1705139454434,-501.80212466,0.00027397,2]
[311455640,1705139454443,-500.0,0.00027397,2]
[311455641,1705139454452,-1113.72,0.00027397,2]
[311455642,1705139454462,-565.48,0.00027397,2]
[311455643,1705139454471,-500.0,0.00027397,2]
[311455644,1705139454481,-505.02208704,0.00027397,2]
[311455645,1705139454492,-505.03434676,0.00027397,2]
[311455646,1705139454502,-500.0,0.00027397,2]
[311455647,1705139454511,-511.81768729,0.00027397,2]
[311455648,1705139454520,-500.0,0.00027397,2]
[311455649,1705139454530,-500.0,0.00027397,2]
[311455650,1705139454539,-2264.91,0.00027397,2]
[311455651,1705139454549,-500.0,0.00027397,2]
[311455652,1705139454558,-500.0,0.00027397,2]
[311455653,1705139454567,-500.0,0.00027397,2]
[311455654,1705139454577,-508.26414741,0.00027397,2]
[311455655,1705139454586,-500.0,0.00027397,2]
[311455656,1705139454595,-521.32,0.00027397,2]
[311455657,1705139454605,-4256.21,0.00027397,2]
[311455658,1705139454618,-500.0,0.00027397,2]
[311455659,1705139454627,-500.0,0.00027397,2]
[311455660,1705139454636,-503.24074516,0.00027397,2]
[311455661,1705139454646,-500.0,0.00027397,2]
[311455662,1705139454655,-500.0,0.00027397,2]
[311455663,1705139454665,-500.0,0.00027397,2]
[311455664,1705139454674,-500.0,0.00027397,2]
[311455665,1705139454684,-591.07,0.00027397,2]
[311455666,1705139454693,-529.63491127,0.00027397,2]
[311455667,1705139454702,-502.33502786,0.00027397,2]
[311455668,1705139454712,-667.04,0.00027397,2]
[311455669,1705139454721,-500.0,0.00027397,2]
[311455670,1705139454730,-500.0,0.00027397,2]
[311455671,1705139454740,-500.0,0.00027397,2]
[311455672,1705139454749,-512.39130834,0.00027397,2]
[311455673,1705139454758,-509.61792099,0.00027397,2]
[311455674,1705139454767,-1545.41,0.00027397,2]